[Event "8th RTU Open 2018"]
[Site "Riga"]
[Date "2018.08.09"]
[Round "5"]
[White "Mierins, Eriks"]
[Black "Haria, Ravi"]
[Result "1/2-1/2"]
[ECO "C04"]
[WhiteElo "2235"]
[BlackElo "2449"]
[Annotator "NA"]
[PlyCount "107"]
[EventDate "2018.08.06"]
[EventType "swiss"]
[EventCountry "LAT"]
[SourceTitle "playchess.com"]
[Source "ChessBase"]
[SourceQuality "1"]
[TimeControl "5400+30"]

1. e4 {[%emt 0:04:43]} e6 {[%emt 0:00:00]} 2. d4 {[%emt 0:00:38]} d5 {[%emt 0:00:00]} 3. Nd2 {[%emt 0:00:08]} Nc6 {[%emt 0:00:00]} 4. Ngf3 {[%emt 0:00:26]} Nf6 {[%emt 0:00:07]} 5. e5 {[%emt 0:00:24]} Nd7 {[%emt 0:00:04]} 6. Be2 {[%emt 0:00:21]} f6 {[%emt 0:02:45]} 7. exf6 {[%emt 0:08:24]} Qxf6 {[%emt 0:00:06]} 8. Nf1 {[%emt 0:01:39]} Bd6 {[%emt 0:06:04]} 9. Bg5 {[%emt 0:00:54] C04: French Tarrasch: 3...Nc6} (9. Ne3 O-O 10. O-O Qf7 11. c4 Nf6 12. c5 Bf4 13. Nc2 Ne4 14. Bxf4 Qxf4 15. Nce1 Qf6 16. Bb5 Bd7 17. Nd3 Qh6 18. Qc1 {1-0 (49) Yu,S (2469)-Mu,K (2460) Hangzhou 2018}) 9... Qf7 {[%emt 0:01:14]} 10. Ne3 {[%emt 0:01:38]} O-O {[%emt 0:07:23]} 11. Bh4 {[%emt 0:03:58] LiveBook: 4 Games} Nf6 {[%emt 0:09:35]} 12. Bg3 $146 {[%emt 0:02:20]} ({Predecessor:} 12. O-O Bd7 13. a3 Bf4 14. Bg3 g5 15. Ne5 Qg7 16. Nxd7 Nxd7 {0-1 (46) Cvijic,N (2148)-Pandurevic,M (2271) Banja Vrucica 2014}) 12... Ne4 {[%emt 0:02:05]} 13. Bxd6 {[%emt 0:00:08]} cxd6 {[%emt 0:05:37]} 14. O-O {[%emt 0:02:05]} Ne7 {[%emt 0:09:41]} 15. c3 {[%emt 0:02:21]} Ng6 {[%emt 0:00:57]} 16. Nd2 {[%emt 0:03:02]} Nf6 {[%emt 0:06:05]} 17. f4 {[%emt 0:04:28]} Ne7 {[%emt 0:05:36]} 18. Bd3 {[%emt 0:06:17]} g6 {[%emt 0:02:38]} 19. Ng4 {[%emt 0:01:08]} (19. Qe2 $14) 19... Nxg4 {[%emt 0:00:24]} 20. Qxg4 {[%emt 0:00:08]} Bd7 {[%emt 0:07:17]} 21. Rae1 {[%emt 0:08:23]} Rac8 $16 {[%emt 0:04:51]} 22. Qh3 {[%emt 0:07:04]} Qg7 {[%emt 0:01:59]} 23. Qe3 {[%emt 0:01:23]} Nf5 {[%emt 0:01:48]} 24. Bxf5 {[%emt 0:02:53]} Rxf5 {[%emt 0:01:10]} 25. Nf3 {[%emt 0:00:39]} Rcf8 {[%emt 0:01:41]} 26. g3 {[%emt 0:05:58]} h6 {[%emt 0:01:35]} 27. h4 {[%emt 0:00:55]} R5f7 {[%emt 0:06:11]} 28. Kg2 {[%emt 0:00:51]} Qf6 {[%emt 0:01:15]} 29. Qd2 {[%emt 0:12:44]} Qf5 {[%emt 0:01:54]} 30. Nh2 {[%emt 0:03:13]} b5 {[%emt 0:03:26]} 31. a3 {[%emt 0:00:10]} a5 {[%emt 0:00:20]} 32. b4 {[%emt 0:00:38]} Ra8 {[%emt 0:01:41]} 33. Qe2 {[%emt 0:06:23]} Bc8 {[%emt 0:02:29]} 34. g4 {[%emt 0:00:44]} Qe4+ {[%emt 0:01:53]} 35. Qxe4 {[%emt 0:03:08]} dxe4 {[%emt 0:00:01]} 36. Kg3 {[%emt 0:00:13]} Bb7 {[%emt 0:00:13]} 37. Re3 {[%emt 0:03:27]} axb4 {[%emt 0:00:11]} 38. axb4 {[%emt 0:00:10]} Rc7 {[%emt 0:00:08]} 39. h5 {[%emt 0:00:55]} gxh5 {[%emt 0:00:21]} 40. gxh5 {[%emt 0:00:16]} Rac8 {[%emt 0:00:29]} 41. Ng4 {[%emt 0:00:53]} Rxc3 {[%emt 0:04:45]} 42. Nxh6+ {[%emt 0:00:07]} Kg7 {[%emt 0:02:46]} 43. Ng4 {[%emt 0:00:06]} Rxe3+ {[%emt 0:01:57]} 44. Nxe3 {[%emt 0:00:03]} Rc3 {[%emt 0:00:08]} 45. Kf2 {[%emt 0:00:56]} Rd3 {[%emt 0:00:53]} 46. Rc1 {[%emt 0:02:36]} Bd5 {[%emt 0:00:22]} 47. Nxd5 {[%emt 0:02:25]} exd5 {[%emt 0:00:01]} 48. Rc6 {[%emt 0:00:04]} Rxd4 {[%emt 0:01:13]} 49. Rxd6 {[%emt 0:00:02]} Rd2+ {[%emt 0:00:09]} 50. Ke1 {[%emt 0:01:40]} Rd3 {[%emt 0:00:11]} 51. f5 {[%emt 0:00:08]} d4 {[%emt 0:00:44]} 52. Ke2 {[%emt 0:00:37]} Re3+ {[%emt 0:00:30]} 53. Kd2 {[%emt 0:00:05]} Rd3+ {[%emt 0:00:03]} 54. Ke2 {[%emt 0:00:44]} 1/2-1/2

[Event "8th RTU Open 2018"]
[Site "Riga"]
[Date "2018.08.09"]
[Round "5"]
[White "Gorodetzky, Matan"]
[Black "Cruz Lledo, Pablo"]
[Result "1/2-1/2"]
[ECO "D02"]
[WhiteElo "2231"]
[BlackElo "2432"]
[Annotator "NA"]
[PlyCount "101"]
[EventDate "2018.08.06"]
[EventType "swiss"]
[EventCountry "LAT"]
[SourceTitle "playchess.com"]
[Source "ChessBase"]
[SourceQuality "1"]
[TimeControl "5400+30"]

1. d4 {[%emt 0:00:04]} d5 {[%emt 0:00:00]} 2. Nf3 {[%emt 0:00:18]} e6 {[%emt 0:02:45]} 3. e3 {[%emt 0:00:10]} c5 {[%emt 0:00:45]} 4. dxc5 {[%emt 0:00:43]} Bxc5 {[%emt 0:03:00]} 5. c4 {[%emt 0:04:08]} Nf6 {[%emt 0:01:18]} 6. a3 {[%emt 0:01:48]} O-O {[%emt 0:00:42]} 7. Nc3 {[%emt 0:01:00]} a6 {[%emt 0:04:28]} 8. Be2 {[%emt 0:01:43]} Nc6 {[%emt 0:01:24]} 9. O-O {[%emt 0:01:06]} dxc4 {[%emt 0:10:47]} 10. Bxc4 {[%emt 0:02:27]} b5 {[%emt 0:00:38]} 11. Bd3 {[%emt 0:04:04] LiveBook: 7 Games} Bb7 {[%emt 0:03:46]} 12. Qe2 {[%emt 0:05:19]} Rc8 {[%emt 0:05:13]} 13. Bd2 {[%emt 0:27:22]} Qe7 {[%emt 0:05:59]} 14. Rac1 {[%emt 0:02:29]} Bd6 {[%emt 0:12:09]} 15. a4 {[%emt 0:10:47]} b4 {[%emt 0:02:37]} 16. Ne4 $15 {[%emt 0:00:57]} Nxe4 {[%emt 0:00:42]} 17. Bxe4 {[%emt 0:00:02]} Ne5 {[%emt 0:01:52]} 18. Bxb7 {[%emt 0:07:26]} Qxb7 {[%emt 0:00:09]} 19. Nd4 {[%emt 0:04:10]} Rxc1 {[%emt 0:00:40]} 20. Rxc1 {[%emt 0:02:19]} Rc8 {[%emt 0:00:05]} 21. Rxc8+ {[%emt 0:06:34]} Qxc8 {[%emt 0:00:11]} 22. b3 {[%emt 0:00:02]} Bc5 {[%emt 0:05:22]} 23. Nc2 {[%emt 0:02:27]} Qb7 {[%emt 0:01:37]} 24. Ne1 {[%emt 0:03:14]} Qd5 {[%emt 0:07:48]} 25. f4 {[%emt 0:01:11]} Ng6 {[%emt 0:03:16]} 26. Nd3 {[%emt 0:01:04]} a5 {[%emt 0:00:54]} 27. Nxc5 {[%emt 0:02:00]} Qxc5 {[%emt 0:00:02]} 28. Qd3 {[%emt 0:01:05]} f5 {[%emt 0:03:19]} 29. g3 {[%emt 0:00:58]} Kf7 {[%emt 0:00:56]} 30. Kf2 {[%emt 0:00:43]} Ne7 {[%emt 0:00:13]} 31. Kf3 {[%emt 0:05:45]} Nd5 {[%emt 0:02:16]} 32. Ke2 {[%emt 0:01:07]} Nf6 {[%emt 0:04:16]} 33. Qb5 {[%emt 0:01:22]} Qd5 {[%emt 0:02:05]} 34. Qxd5 {[%emt 0:00:06]} exd5 {[%emt 0:00:01]} 35. Kd3 {[%emt 0:00:21]} Ke6 {[%emt 0:02:29]} 36. Bc1 {[%emt 0:00:09]} Ne4 {[%emt 0:08:18]} 37. Bb2 {[%emt 0:00:06]} Nc5+ {[%emt 0:00:14]} 38. Kc2 {[%emt 0:00:01]} g6 {[%emt 0:00:12]} 39. Bd4 {[%emt 0:00:04]} Nd7 {[%emt 0:00:20]} 40. Kd3 {[%emt 0:00:56]} Kd6 {[%emt 0:00:06]} 41. Kc2 {[%emt 0:00:12]} Kc6 {[%emt 0:01:02]} 42. Kd2 {[%emt 0:00:01]} Nf8 {[%emt 0:01:36]} 43. Kc2 {[%emt 0:01:03]} Ne6 {[%emt 0:00:12]} 44. h4 {[%emt 0:01:01]} Nc5 {[%emt 0:01:35]} 45. Bxc5 {[%emt 0:00:21]} Kxc5 {[%emt 0:00:02]} 46. Kd3 {[%emt 0:00:19]} h6 {[%emt 0:00:23]} 47. Kd2 {[%emt 0:00:08]} d4 {[%emt 0:01:08]} 48. Kd3 {[%emt 0:00:07]} dxe3 {[%emt 0:00:29]} 49. Kxe3 {[%emt 0:00:01]} Kd5 {[%emt 0:00:29]} 50. Kd3 {[%emt 0:00:05]} Kc5 {[%emt 0:00:13]} 51. Ke3 {[%emt 0:00:02]} 1/2-1/2

[Event "8th RTU Open 2018"]
[Site "Riga"]
[Date "2018.08.09"]
[Round "5"]
[White "Valner, Uku"]
[Black "Gorbatov, Alexej"]
[Result "1/2-1/2"]
[ECO "B01"]
[WhiteElo "2227"]
[BlackElo "2389"]
[Annotator "NA"]
[PlyCount "136"]
[EventDate "2018.08.06"]
[EventType "swiss"]
[EventCountry "LAT"]
[SourceTitle "playchess.com"]
[Source "ChessBase"]
[SourceQuality "1"]
[TimeControl "5400+30"]

1. e4 d5 2. exd5 Qxd5 3. Nc3 Qd8 4. d4 Nf6 5. Bd3 c6 6. Nge2 Bg4 7. Bg5 e6 8. Qd2 Bxe2 9. Nxe2 Nbd7 10. O-O-O Be7 11. f4 Qc7 12. Rhe1 O-O-O 13. Ng3 $11 h6 14. Bh4 Rhe8 15. Kb1 Kb8 16. Qe2 Nd5 17. Bxe7 Rxe7 18. f5 exf5 19. Qd2 Rxe1 20. Rxe1 g6 21. Qxh6 N7f6 22. c3 a6 23. Bc4 Ka7 24. Qg5 Rh8 25. Bxd5 Nxd5 26. Nf1 Rh5 27. Qd2 Nf6 28. Qe2 Nd5 29. Qd2 f4 30. c4 Nf6 31. Qd3 Qd6 32. Qc3 Rh8 33. a3 Rd8 34. Rd1 Ne4 35. Qc2 f5 36. Qb3 b5 37. cxb5 cxb5 38. Ka1 Qd5 39. Qf3 Qd6 40. Qb3 Rc8 41. g3 Rc4 42. gxf4 Qxf4 43. Qe3 Qxe3 44. Nxe3 Rc6 45. h4 Rd6 46. Ng2 Nf6 47. Nf4 Nd5 48. Nxd5 Rxd5 49. Kb1 Rd7 50. Kc2 Rh7 51. Rh1 Rh5 52. Rg1 Rxh4 53. Rxg6 Rxd4 54. Rf6 Rd5 55. Kc3 a5 56. b3 Kb7 57. a4 Kc7 58. axb5 Rxb5 59. Kc4 Rb4+ 60. Kc3 f4 61. Ra6 Re4 62. Rxa5 Kd6 63. Rf5 Ke6 64. Rf8 Re3+ 65. Kd4 Rxb3 66. Rxf4 Rb4+ 67. Ke3 Rxf4 68. Kxf4 Kd5 1/2-1/2

[Event "8th RTU Open 2018"]
[Site "Riga"]
[Date "2018.08.09"]
[Round "5"]
[White "Chibukhchyan, Erik"]
[Black "Yankelevich, Lev"]
[Result "0-1"]
[ECO "C50"]
[WhiteElo "2214"]
[BlackElo "2420"]
[Annotator "NA"]
[PlyCount "152"]
[EventDate "2018.08.06"]
[EventType "swiss"]
[EventCountry "LAT"]
[SourceTitle "playchess.com"]
[Source "ChessBase"]
[SourceQuality "1"]
[TimeControl "5400+30"]

1. e4 {[%emt 0:00:00]} e5 {[%emt 0:00:00]} 2. Nf3 {[%emt 0:00:00]} Nc6 {[%emt 0:00:00]} 3. Bc4 {[%emt 0:00:00]} Nf6 {[%emt 0:00:00]} 4. d3 {[%emt 0:00:00]} Bc5 {[%emt 0:00:40]} 5. c3 {[%emt 0:00:03]} d6 {[%emt 0:00:17]} 6. b4 {[%emt 0:00:25]} Bb6 {[%emt 0:00:07]} 7. a4 {[%emt 0:00:19] LiveBook: 246 Games} a6 {[%emt 0:00:44]} 8. O-O {[%emt 0:00:17]} h6 {[%emt 0:00:16]} 9. a5 {[%emt 0:00:18] C54: Giuoco Piano: 4 c3 Nf6, main lines with 5 d4 and 5 d3} (9. Nbd2 O-O 10. Bb3 d5 11. Bb2 Be6 12. Re1 Re8 13. h3 d4 14. Bxe6 Rxe6 15. Nc4 dxc3 16. Bxc3 Bd4 17. Bxd4 Nxd4 18. Ncxe5 Nxf3+ 19. Nxf3 {1-0 (52) Yudin,S (2546)-Kasimdzhanov,R (2700) Dubai 2014}) 9... Ba7 {[%emt 0:00:04]} 10. h3 {[%emt 0:02:10]} O-O {[%emt 0:00:16]} 11. Nbd2 {[%emt 0:08:21]} Ne7 {[%emt 0:09:08]} 12. Bb3 {[%emt 0:00:58]} Ng6 {[%emt 0:00:38]} 13. Re1 $146 {[%emt 0:00:19]} ({Predecessor:} 13. Nc4 Re8 14. Be3 Be6 15. Bxa7 Rxa7 16. Re1 Ra8 17. Ba4 Bd7 {0-1 (31) Kovanova,B (2391)-Shen,Y (2425) St Petersburg 2012}) 13... Nh5 {[%emt 0:01:23]} 14. Nf1 {[%emt 0:07:41]} Nhf4 {[%emt 0:00:32]} 15. Be3 {[%emt 0:00:55]} Bd7 {[%emt 0:27:48]} 16. Bxa7 {[%emt 0:04:11]} Rxa7 {[%emt 0:00:03]} 17. d4 {[%emt 0:02:23]} exd4 {[%emt 0:07:51]} 18. Qxd4 {[%emt 0:02:12]} Ra8 {[%emt 0:00:28]} 19. Ne3 {[%emt 0:07:36]} Ne5 {[%emt 0:00:12]} 20. Nxe5 {[%emt 0:01:33]} dxe5 {[%emt 0:03:57]} 21. Qd1 {[%emt 0:00:17]} Bc6 {[%emt 0:08:07]} 22. Bd5 {[%emt 0:04:59]} Qf6 $11 {[%emt 0:00:59]} 23. Qg4 {[%emt 0:06:24]} Rad8 {[%emt 0:01:50]} 24. Bxc6 {[%emt 0:09:01]} Qxc6 {[%emt 0:00:06]} 25. Nf5 {[%emt 0:00:09]} Qf6 {[%emt 0:00:14]} 26. Rad1 {[%emt 0:01:59]} g6 {[%emt 0:10:59]} 27. Ne3 {[%emt 0:02:02]} Nd3 {[%emt 0:00:54]} 28. Rf1 {[%emt 0:00:21]} h5 {[%emt 0:01:00]} 29. Qe2 {[%emt 0:00:53]} Nf4 {[%emt 0:00:04]} 30. Qf3 {[%emt 0:00:21]} c6 {[%emt 0:00:37]} 31. Kh2 {[%emt 0:03:30]} Qe6 {[%emt 0:02:17]} 32. Rxd8 {[%emt 0:01:26]} Rxd8 {[%emt 0:00:04]} 33. Rd1 {[%emt 0:00:06]} Rxd1 {[%emt 0:00:50]} 34. Qxd1 {[%emt 0:00:36]} Qa2 {[%emt 0:00:08]} 35. Nc2 {[%emt 0:01:46]} Qc4 {[%emt 0:01:21]} 36. Qd8+ {[%emt 0:07:10]} Kg7 {[%emt 0:00:44]} 37. Qe7 {[%emt 0:01:32]} Qxe4 {[%emt 0:00:30]} 38. Ne3 {[%emt 0:00:07]} Ne2 {[%emt 0:00:41]} 39. g4 {[%emt 0:04:21]} hxg4 {[%emt 0:04:18]} 40. Nxg4 {[%emt 0:02:13]} Qf4+ {[%emt 0:00:06]} 41. Kg2 {[%emt 0:00:10]} Nxc3 {[%emt 0:00:06]} 42. Qxb7 {[%emt 0:00:26]} Qe4+ {[%emt 0:01:04]} 43. Kh2 {[%emt 0:00:26]} Qc4 {[%emt 0:08:17]} 44. Qc7 {[%emt 0:03:48]} Qf4+ {[%emt 0:00:15]} 45. Kg2 {[%emt 0:00:01]} Qe4+ {[%emt 0:00:33]} 46. Kh2 {[%emt 0:00:03]} Na2 {[%emt 0:00:36]} 47. Nxe5 {[%emt 0:03:15]} Qf4+ {[%emt 0:00:03]} 48. Kg2 {[%emt 0:00:02]} Nxb4 {[%emt 0:00:05]} 49. Qe7 {[%emt 0:01:37]} Nd5 {[%emt 0:00:24]} 50. Qe8 {[%emt 0:01:38]} Qg5+ {[%emt 0:00:26]} 51. Kf1 {[%emt 0:02:01]} Qf5 {[%emt 0:02:03]} 52. Ng4 {[%emt 0:03:32]} Qd3+ {[%emt 0:01:23]} 53. Kg1 {[%emt 0:01:39]} Qxh3 {[%emt 0:00:11]} 54. Ne5 {[%emt 0:00:09]} Qf5 {[%emt 0:04:51]} 55. Nxc6 {[%emt 0:00:43]} Qg4+ {[%emt 0:00:05]} 56. Kf1 {[%emt 0:02:49]} Nf6 {[%emt 0:02:09]} 57. Qe2 {[%emt 0:00:28]} Qh3+ {[%emt 0:01:25]} 58. Kg1 {[%emt 0:00:00]} Ng4 {[%emt 0:00:05]} 59. Qb2+ {[%emt 0:00:33]} Kh7 {[%emt 0:01:10]} 60. Qb6 {[%emt 0:00:01]} Qf3 {[%emt 0:02:28]} 61. Nb4 {[%emt 0:02:02]} Qh3 {[%emt 0:01:49]} 62. Qc7 {[%emt 0:01:12]} Qf3 {[%emt 0:00:22]} 63. Qb6 {[%emt 0:00:05]} Ne5 {[%emt 0:00:19]} 64. Nxa6 {[%emt 0:01:35]} Qh3 {[%emt 0:00:14]} 65. f4 {[%emt 0:00:21]} Qg3+ {[%emt 0:00:16]} 66. Kf1 {[%emt 0:00:46]} Qxf4+ {[%emt 0:00:03]} 67. Ke2 {[%emt 0:01:05]} Qe4+ {[%emt 0:00:04]} 68. Kd1 {[%emt 0:00:25]} Qd3+ {[%emt 0:00:11]} 69. Ke1 {[%emt 0:00:12]} Qe4+ {[%emt 0:00:12]} 70. Kd1 {[%emt 0:00:06]} Qd3+ {[%emt 0:01:09]} 71. Ke1 {[%emt 0:00:08]} Nc4 {[%emt 0:00:40]} 72. Qb4 {[%emt 0:04:42]} Qe4+ {[%emt 0:01:34]} 73. Kf2 {[%emt 0:00:01]} Qf5+ {[%emt 0:00:22]} 74. Kg3 {[%emt 0:00:01]} Nxa5 {[%emt 0:00:12]} 75. Nc5 {[%emt 0:00:01]} Nc6 {[%emt 0:00:06]} 76. Qh4+ {[%emt 0:00:08]} Kg7 {[%emt 0:00:10]} 0-1

[Event "8th RTU Open 2018"]
[Site "Riga"]
[Date "2018.08.09"]
[Round "5"]
[White "Holland, James P"]
[Black "Krivonosov, Oleg"]
[Result "1/2-1/2"]
[ECO "C54"]
[WhiteElo "2212"]
[BlackElo "2386"]
[Annotator "NA"]
[PlyCount "80"]
[EventDate "2018.08.06"]
[EventType "swiss"]
[EventCountry "LAT"]
[SourceTitle "playchess.com"]
[Source "ChessBase"]
[SourceQuality "1"]
[TimeControl "5400+30"]

1. e4 {[%emt 0:00:00]} e5 {[%emt 0:00:00]} 2. Nf3 {[%emt 0:00:00]} Nc6 {[%emt 0:00:00]} 3. Bc4 {[%emt 0:00:00]} Bc5 {[%emt 0:00:00]} 4. c3 {[%emt 0:00:07]} Nf6 {[%emt 0:00:15]} 5. d4 {[%emt 0:00:17]} exd4 {[%emt 0:00:24]} 6. cxd4 {[%emt 0:00:04]} Bb4+ {[%emt 0:00:14]} 7. Bd2 {[%emt 0:00:09]} Nxe4 {[%emt 0:01:56]} 8. Bxb4 {[%emt 0:00:43]} Nxb4 {[%emt 0:00:05]} 9. Bxf7+ {[%emt 0:00:07]} Kxf7 {[%emt 0:00:03]} 10. Qb3+ {[%emt 0:00:06] C54: Giuoco Piano: 4 c3 Nf6, main lines with 5 d4 and 5 d3} Kf8 {[%emt 0:01:04]} 11. Qxb4+ {[%emt 0:00:33]} Qe7 {[%emt 0:00:06]} 12. Qxe7+ {[%emt 0:00:28]} Kxe7 {[%emt 0:00:04]} 13. O-O {[%emt 0:01:16]} Kd8 {[%emt 0:01:40]} 14. Re1 {[%emt 0:03:16]} Nf6 {[%emt 0:00:40]} 15. Nc3 {[%emt 0:00:57]} d6 {[%emt 0:00:24]} 16. Ng5 {[%emt 0:04:57]} Rf8 {[%emt 0:04:15]} 17. f3 {[%emt 0:04:05]} h6 {[%emt 0:06:53]} (17... a5) 18. Ne6+ {[%emt 0:00:30]} Bxe6 {[%emt 0:00:19]} 19. Rxe6 {[%emt 0:00:04]} Kd7 {[%emt 0:02:34]} 20. Rae1 {[%emt 0:00:18]} Rae8 $146 {[%emt 0:01:02]} ({Predecessor:} 20... Rf7 21. b4 b5 22. a3 a5 23. Nxb5 Rb8 24. Nc3 axb4 {0-1 (24) Aguirre Contreras,C (2293)-Lopez Silva,H (2422) Quilpué 2016}) 21. Rxe8 {[%emt 0:00:36]} Nxe8 {[%emt 0:00:42]} 22. Kf2 {[%emt 0:14:29]} Nf6 {[%emt 0:04:20]} 23. Ke3 {[%emt 0:02:56]} c6 {[%emt 0:02:06]} 24. g3 {[%emt 0:05:53]} b5 {[%emt 0:01:58]} 25. b4 {[%emt 0:25:35]} a5 $11 {[%emt 0:05:24]} 26. a3 {[%emt 0:03:51]} axb4 {[%emt 0:07:41]} 27. axb4 {[%emt 0:00:04]} Ra8 28. Kd2 {[%emt 0:16:12]} Ra3 {[%emt 0:02:05]} 29. Rb1 {[%emt 0:03:48]} Nd5 {[%emt 0:11:43]} 30. Nxd5 {[%emt 0:00:12]} cxd5 {[%emt 0:00:02]} 31. Ke2 {[%emt 0:00:13]} g5 {[%emt 0:03:03]} 32. h4 {[%emt 0:03:04]} Ra2+ {[%emt 0:15:55]} 33. Ke3 {[%emt 0:02:05]} Ra3+ {[%emt 0:03:05]} 34. Ke2 {[%emt 0:00:08]} gxh4 {[%emt 0:02:48]} 35. gxh4 {[%emt 0:00:04]} h5 {[%emt 0:01:45]} 36. Rg1 {[%emt 0:00:51]} Rb3 {[%emt 0:03:14]} 37. Rg5 {[%emt 0:00:03]} Rxb4 {[%emt 0:00:11]} 38. Rxd5 {[%emt 0:00:14]} Ke6 {[%emt 0:02:21]} 39. Rxh5 {[%emt 0:00:19]} Rxd4 {[%emt 0:00:05]} 40. Rxb5 {[%emt 0:00:07]} Rxh4 {[%emt 0:00:04]} 1/2-1/2

[Event "8th RTU Open 2018"]
[Site "Riga"]
[Date "2018.08.09"]
[Round "5"]
[White "Kerem, Halil Ozgun"]
[Black "Sirosh, Ilja"]
[Result "0-1"]
[ECO "A45"]
[WhiteElo "2194"]
[BlackElo "2372"]
[Annotator "NA"]
[PlyCount "96"]
[EventDate "2018.08.06"]
[EventType "swiss"]
[EventCountry "LAT"]
[SourceTitle "playchess.com"]
[Source "ChessBase"]
[SourceQuality "1"]
[TimeControl "5400+30"]

1. d4 {[%emt 0:00:00]} Nf6 {[%emt 0:00:00]} 2. Bf4 {[%emt 0:00:00]} d5 {[%emt 0:00:00]} 3. e3 {[%emt 0:00:00]} c5 {[%emt 0:00:03]} 4. c3 {[%emt 0:00:00]} Nc6 {[%emt 0:00:07]} 5. Nd2 {[%emt 0:00:00]} e6 {[%emt 0:00:06]} 6. Ngf3 {[%emt 0:00:02]} Bd6 {[%emt 0:00:15]} 7. Bg3 {[%emt 0:00:07]} O-O {[%emt 0:00:10]} 8. Bb5 {[%emt 0:00:07]} Be7 {[%emt 0:00:26]} 9. Bd3 {[%emt 0:09:07]} Nh5 {[%emt 0:13:08]} 10. Ne5 $11 {[%emt 0:24:34]} g6 {[%emt 0:01:31]} 11. f4 {[%emt 0:05:56]} Nxe5 {[%emt 0:28:21]} 12. fxe5 {[%emt 0:11:16]} f5 {[%emt 0:00:19]} 13. Nf3 c4 {[%emt 0:05:27]} 14. Bc2 {[%emt 0:04:25]} b5 {[%emt 0:01:11]} 15. a3 {[%emt 0:00:16]} a5 {[%emt 0:00:32]} 16. O-O {[%emt 0:00:04]} Nxg3 17. hxg3 h5 18. Qd2 Kg7 19. Kf2 Bd7 20. Rfc1 Qb6 21. Kg1 b4 22. Rcb1 bxc3 23. bxc3 {[%emt 0:15:17]} Qc7 24. a4 Rab8 25. Qd1 Rh8 26. Rxb8 Rxb8 27. Rb1 Ba3 28. Kf2 Qd8 29. Ke2 Rb2 30. Rxb2 Bxb2 31. Qd2 Ba1 32. Qe1 Bb2 33. Qd2 Qf8 34. Bxf5 Qa3 35. Bxg6 Bxc3 36. Qc2 Bxa4 37. Qb1 Qb2+ 38. Qxb2 Bxb2 39. Bb1 Bb3 40. Ne1 a4 41. Nc2 a3 42. Nb4 Bc3 43. Na2 Ba5 44. Nc1 Kh6 45. Ba2 Bc2 46. Kf3 Bd2 47. Ne2 Bb3 48. Bb1 c3 0-1

[Event "8th RTU Open 2018"]
[Site "Riga"]
[Date "2018.08.09"]
[Round "5"]
[White "Huber, Philipp"]
[Black "Seyb, Alexander"]
[Result "1/2-1/2"]
[ECO "A45"]
[WhiteElo "2189"]
[BlackElo "2383"]
[Annotator "NA"]
[PlyCount "120"]
[EventDate "2018.08.06"]
[EventType "swiss"]
[EventCountry "LAT"]
[SourceTitle "playchess.com"]
[Source "ChessBase"]
[SourceQuality "1"]
[TimeControl "5400+30"]

1. d4 {[%emt 0:00:08]} Nf6 {[%emt 0:00:00]} 2. Bg5 {[%emt 0:00:21]} e6 {[%emt 0:00:00]} 3. e4 {[%emt 0:00:20]} h6 {[%emt 0:00:00]} 4. Bxf6 {[%emt 0:00:12]} Qxf6 {[%emt 0:00:00]} 5. c3 {[%emt 0:00:37]} d6 {[%emt 0:00:23] LiveBook: 422 Games} 6. Bd3 {[%emt 0:02:29]} Qg6 {[%emt 0:01:24] A45: Damenbauernspiele (Trompowski-Angriff)} (6... g6 7. Ne2 Bg7 8. O-O O-O 9. f4 Qe7 10. e5 b6 11. Nd2 Bb7 12. Be4 Bxe4 13. Nxe4 Rd8 14. Qe1 {0-1 (62) Moiseenko,A (2667)-Wang,Y (2690) Riadh 2017}) 7. Qf3 {[%emt 0:18:16]} e5 {[%emt 0:02:00]} 8. Bc4 $146 {[%emt 0:00:38]} ({Vorgänger:} 8. h3 Be7 9. Ne2 Nc6 10. O-O O-O 11. Nd2 Bd7 12. Qe3 f5 13. exf5 Bxf5 14. Bxf5 Rxf5 {1-0 (46) Hendriks,W (2401)-Dann,M (2506) Germany 2018}) 8... Be7 {[%emt 0:09:11]} 9. Ne2 {[%emt 0:01:12]} O-O {[%emt 0:00:16]} 10. h3 {[%emt 0:00:28]} c6 {[%emt 0:10:11]} 11. Nd2 {[%emt 0:07:04]} Be6 {[%emt 0:03:14]} 12. Bxe6 {[%emt 0:07:04]} fxe6 {[%emt 0:00:28]} 13. Qg4 {[%emt 0:01:43]} Qxg4 {[%emt 0:01:09]} 14. hxg4 {[%emt 0:00:03]} Nd7 {[%emt 0:00:25]} 15. Nf3 {[%emt 0:09:28]} exd4 {[%emt 0:14:12]} 16. Nfxd4 {[%emt 0:02:14]} Nc5 {[%emt 0:00:06]} 17. f3 {[%emt 0:01:00]} Bg5 {[%emt 0:14:45]} 18. Rd1 $11 {[%emt 0:01:20]} Rae8 19. Nb3 Nxb3 {[%emt 0:06:09]} 20. axb3 {[%emt 0:08:09]} d5 {[%emt 0:00:05]} 21. e5 {[%emt 0:00:38]} c5 {[%emt 0:07:19]} 22. Kf2 {[%emt 0:02:57]} Rc8 {[%emt 0:04:44]} 23. g3 {[%emt 0:02:07]} Rc6 {[%emt 0:00:12]} 24. f4 {[%emt 0:00:47]} Rb6 {[%emt 0:00:18]} 25. Nc1 {[%emt 0:02:10]} c4 {[%emt 0:04:00]} 26. bxc4 {[%emt 0:05:48]} dxc4 {[%emt 0:00:06]} 27. Ke3 {[%emt 0:01:23]} Be7 {[%emt 0:00:15]} 28. Rd2 {[%emt 0:01:03]} a5 {[%emt 0:03:07]} 29. Ke4 {[%emt 0:03:07]} a4 {[%emt 0:00:28]} 30. Ne2 {[%emt 0:00:29]} Ra8 {[%emt 0:01:29]} 31. Ra1 {[%emt 0:01:10]} g6 {[%emt 0:02:24]} 32. Ra2 {[%emt 0:00:40]} Kf7 {[%emt 0:00:31]} 33. Rd7 {[%emt 0:00:43]} Rc8 {[%emt 0:03:25]} 34. f5 {[%emt 0:03:51]} gxf5+ {[%emt 0:01:40]} 35. gxf5 {[%emt 0:00:03]} exf5+ {[%emt 0:00:05]} 36. Kxf5 {[%emt 0:00:04]} Rg8 {[%emt 0:00:27]} 37. Rxa4 {[%emt 0:01:48]} Rg5+ {[%emt 0:00:27]} 38. Kf4 {[%emt 0:00:17]} Ke6 {[%emt 0:00:32]} 39. Rd2 {[%emt 0:01:18]} Rf5+ {[%emt 0:00:35]} 40. Kg4 {[%emt 0:00:14]} h5+ {[%emt 0:00:37]} 41. Kh3 {[%emt 0:00:05]} Kxe5 {[%emt 0:01:32]} 42. Rxc4 {[%emt 0:00:16]} Rf2 {[%emt 0:02:03]} 43. Rcd4 {[%emt 0:02:47]} Bg5 {[%emt 0:01:37]} 44. Nf4 {[%emt 0:01:24]} Rxd2 {[%emt 0:00:43]} 45. Rxd2 {[%emt 0:00:03]} Ke4 {[%emt 0:04:12]} 46. Rd4+ {[%emt 0:02:16]} Kf3 {[%emt 0:00:01]} 47. Nd3 {[%emt 0:00:18]} Be7 {[%emt 0:02:31]} 48. Rf4+ {[%emt 0:00:53]} Ke3 {[%emt 0:00:32]} 49. Nb4 {[%emt 0:00:11]} Rb5 {[%emt 0:00:53]} 50. Rd4 {[%emt 0:04:19]} Kf3 {[%emt 0:00:01]} 51. Nd5 {[%emt 0:01:26]} Bd6 {[%emt 0:00:33]} 52. b4 {[%emt 0:00:19]} Be5 {[%emt 0:00:43]} 53. Rd1 {[%emt 0:03:45]} Ke2 {[%emt 0:00:04]} 54. c4 {[%emt 0:00:04]} Rxb4 {[%emt 0:00:28]} 55. Nxb4 {[%emt 0:00:12]} Kxd1 {[%emt 0:00:01]} 56. Nd3 {[%emt 0:00:13]} Bc7 {[%emt 0:00:59]} 57. Nc5 {[%emt 0:00:39]} Kc2 {[%emt 0:00:33]} 58. Nxb7 {[%emt 0:00:11]} Kc3 {[%emt 0:00:07]} 59. c5 {[%emt 0:00:04]} Kc4 {[%emt 0:00:11]} 60. Nd6+ {[%emt 0:01:10]} Kxc5 {[%emt 0:00:10]} 1/2-1/2